[Event "Titled Tuesday Blitz May 2 Early 2023"]
[White "Mushini Ajay"]
[Black "Shohat, Yotam"]
[WhiteFideId "35066188"]
[BlackFideId "2813955"]
[WhiteElo "2145"]
[BlackElo "2226"]
[Result "0-1"]
[Round "03"]
[TimeControl "180+2"]
[Date "2023.05.02"]
[WhiteClock "0:00:01"]
[BlackClock "0:00:10"]

1. e4 {[%clk 0:03:00]}  c5 {[%clk 0:02:58]} 2. Nf3 {[%clk 0:02:57]}  d6 {[%clk 0:02:58]} 3. d4 {[%clk 0:02:57]}  cxd4 {[%clk 0:02:59]} 4. Nxd4 {[%clk 0:02:55]}  Nf6 {[%clk 0:03:00]} 5. Nc3 {[%clk 0:02:56]}  a6 {[%clk 0:02:59]} 6. Bg5 {[%clk 0:02:54]}  e6 {[%clk 0:02:59]} 7. Qd2 {[%clk 0:02:54]}  Be7 {[%clk 0:02:57]} 8. O-O-O {[%clk 0:02:53]}  b5 {[%clk 0:02:57]} 9. a3 {[%clk 0:02:47]}  Bb7 {[%clk 0:02:54]} 10. f3 {[%clk 0:02:46]}  Nbd7 {[%clk 0:02:48]} 11. h4 {[%clk 0:02:43]}  Rc8 {[%clk 0:02:42]} 12. Kb1 {[%clk 0:02:43]}  Ne5 {[%clk 0:02:36]} 13. g4 {[%clk 0:02:34]}  h5 {[%clk 0:02:34]} 14. Bxf6 {[%clk 0:02:27]}  Bxf6 {[%clk 0:02:33]} 15. g5 {[%clk 0:02:23]}  Be7 {[%clk 0:02:31]} 16. f4 {[%clk 0:02:23]}  Nc4 {[%clk 0:02:20]} 17. Bxc4 {[%clk 0:02:21]}  Rxc4 {[%clk 0:02:21]} 18. g6 {[%clk 0:02:20]}  Bf6 {[%clk 0:02:21]} 19. gxf7+ {[%clk 0:02:06]}  Kxf7 {[%clk 0:02:22]} 20. Qe3 {[%clk 0:01:11]}  Qb6 {[%clk 0:02:14]} 21. e5 {[%clk 0:01:05]}  dxe5 {[%clk 0:01:50]} 22. fxe5 {[%clk 0:01:06]}  Bxh1 {[%clk 0:01:50]} 23. exf6 {[%clk 0:01:01]}  gxf6 {[%clk 0:01:48]} 24. b3 {[%clk 0:00:45]}  Bf3 {[%clk 0:01:21]} 25. Rd3 {[%clk 0:00:17]}  Bg4 {[%clk 0:01:02]} 26. bxc4 {[%clk 0:00:13]}  bxc4+ {[%clk 0:01:02]} 27. Ndb5 {[%clk 0:00:11]}  Qxe3 {[%clk 0:00:57]} 28. Rxe3 {[%clk 0:00:12]}  axb5 {[%clk 0:00:54]} 29. Nxb5 {[%clk 0:00:13]}  Rb8 {[%clk 0:00:48]} 30. a4 {[%clk 0:00:13]}  e5 {[%clk 0:00:45]} 31. Kb2 {[%clk 0:00:12]}  Bd7 {[%clk 0:00:39]} 32. Kc3 {[%clk 0:00:10]}  Bxb5 {[%clk 0:00:40]} 33. axb5 {[%clk 0:00:11]}  Rxb5 {[%clk 0:00:40]} 34. Kxc4 {[%clk 0:00:12]}  Rb1 {[%clk 0:00:40]} 35. Kc5 {[%clk 0:00:10]}  Ke6 {[%clk 0:00:39]} 36. c4 {[%clk 0:00:10]}  f5 {[%clk 0:00:36]} 37. Rg3 {[%clk 0:00:10]}  f4 {[%clk 0:00:35]} 38. Rg6+ {[%clk 0:00:09]}  Kf5 {[%clk 0:00:36]} 39. Rg5+ {[%clk 0:00:09]}  Kf6 {[%clk 0:00:33]} 40. Rxh5 {[%clk 0:00:08]}  e4 {[%clk 0:00:31]} 41. Kd4 {[%clk 0:00:08]}  e3 {[%clk 0:00:26]} 42. Kd3 {[%clk 0:00:08]}  Rd1+ {[%clk 0:00:21]} 43. Ke2 {[%clk 0:00:06]}  Rd2+ {[%clk 0:00:22]} 44. Ke1 {[%clk 0:00:04]}  Rh2 {[%clk 0:00:14]} 45. Rh8 {[%clk 0:00:01]}  Kf5 {[%clk 0:00:13]} 46. c5 {[%clk 0:00:01]}  Ke4 {[%clk 0:00:10]} 0-1


[Site "https://www.chess.com"]

[Event "Titled Tuesday Blitz May 2 Early 2023"]
[White "Krsnik Cohar, Ivan Vihor"]
[Black "Szente Varga, Fruzsina"]
[WhiteFideId "14520044"]
[BlackFideId "712264"]
[WhiteElo "2414"]
[BlackElo "1994"]
[Result "1-0"]
[Round "03"]
[TimeControl "180+2"]
[Date "2023.05.02"]
[WhiteClock "0:00:06"]
[BlackClock "0:00:08"]

1. e4 {[%clk 0:02:55]}  e5 {[%clk 0:02:55]} 2. Nf3 {[%clk 0:02:55]}  Nc6 {[%clk 0:02:51]} 3. Bb5 {[%clk 0:02:56]}  a6 {[%clk 0:02:51]} 4. Ba4 {[%clk 0:02:56]}  Nf6 {[%clk 0:02:51]} 5. O-O {[%clk 0:02:57]}  Be7 {[%clk 0:02:50]} 6. Re1 {[%clk 0:02:56]}  b5 {[%clk 0:02:48]} 7. Bb3 {[%clk 0:02:56]}  O-O {[%clk 0:02:47]} 8. h3 {[%clk 0:02:57]}  d6 {[%clk 0:02:44]} 9. c3 {[%clk 0:02:57]}  Na5 {[%clk 0:02:43]} 10. Bc2 {[%clk 0:02:57]}  c5 {[%clk 0:02:43]} 11. d4 {[%clk 0:02:58]}  Nc6 {[%clk 0:02:41]} 12. b3 {[%clk 0:02:52]}  Qc7 {[%clk 0:02:40]} 13. d5 {[%clk 0:02:52]}  Na5 {[%clk 0:02:29]} 14. Be3 {[%clk 0:02:46]}  c4 {[%clk 0:02:24]} 15. b4 {[%clk 0:02:46]}  Nb7 {[%clk 0:02:23]} 16. a4 {[%clk 0:02:47]}  Bd7 {[%clk 0:02:18]} 17. a5 {[%clk 0:02:42]}  Rae8 {[%clk 0:02:12]} 18. Nbd2 {[%clk 0:02:42]}  h6 {[%clk 0:02:07]} 19. Nf1 {[%clk 0:02:33]}  Nh7 {[%clk 0:02:07]} 20. Ng3 {[%clk 0:02:33]}  Qc8 {[%clk 0:02:04]} 21. Kh2 {[%clk 0:02:29]}  Kh8 {[%clk 0:01:25]} 22. Rf1 {[%clk 0:02:27]}  Rg8 {[%clk 0:01:14]} 23. Ne2 {[%clk 0:02:03]}  Bf8 {[%clk 0:00:56]} 24. Nh4 {[%clk 0:01:51]}  g6 {[%clk 0:00:55]} 25. Qd2 {[%clk 0:01:35]}  Qd8 {[%clk 0:00:42]} 26. g3 {[%clk 0:01:29]}  Qc8 {[%clk 0:00:26]} 27. g4 {[%clk 0:01:24]}  Qd8 {[%clk 0:00:20]} 28. Ng2 {[%clk 0:01:21]}  h5 {[%clk 0:00:14]} 29. f3 {[%clk 0:01:08]}  f5 {[%clk 0:00:13]} 30. exf5 {[%clk 0:00:51]}  gxf5 {[%clk 0:00:14]} 31. gxf5 {[%clk 0:00:24]}  Qf6 {[%clk 0:00:14]} 32. Ng3 {[%clk 0:00:18]}  Qg7 {[%clk 0:00:14]} 33. Nxh5 {[%clk 0:00:12]}  Qf7 {[%clk 0:00:14]} 34. Ng3 {[%clk 0:00:09]}  Nd8 {[%clk 0:00:14]} 35. Nh4 {[%clk 0:00:09]}  Be7 {[%clk 0:00:08]} 36. Ng6+ {[%clk 0:00:07]}  Kg7 {[%clk 0:00:08]} 37. Bh6+ {[%clk 0:00:06]}  Kf6 {[%clk 0:00:08]} 38. Nh5# {[%clk 0:00:06]} 1-0


[Site "https://www.chess.com"]

[Event "Titled Tuesday Blitz May 2 Early 2023"]
[White "Sousa, Andre Ventura"]
[Black "Balague Camps, Marc"]
[WhiteFideId "1917617"]
[BlackFideId "2297914"]
[WhiteElo "2348"]
[BlackElo "2089"]
[Result "1-0"]
[Round "03"]
[TimeControl "180+2"]
[Date "2023.05.02"]
[WhiteClock "0:00:53"]
[BlackClock "0:00:55"]

1. e4 {[%clk 0:03:00]}  c5 {[%clk 0:02:59]} 2. Nf3 {[%clk 0:02:59]}  e6 {[%clk 0:02:59]} 3. Bd3 {[%clk 0:02:59]}  Nc6 {[%clk 0:02:58]} 4. O-O {[%clk 0:02:59]}  g6 {[%clk 0:02:58]} 5. Re1 {[%clk 0:02:56]}  Bg7 {[%clk 0:02:59]} 6. Bf1 {[%clk 0:02:55]}  Nge7 {[%clk 0:02:57]} 7. c3 {[%clk 0:02:55]}  d5 {[%clk 0:02:55]} 8. e5 {[%clk 0:02:55]}  O-O {[%clk 0:02:49]} 9. d3 {[%clk 0:02:51]}  a5 {[%clk 0:02:48]} 10. a4 {[%clk 0:02:50]}  b6 {[%clk 0:02:48]} 11. Bg5 {[%clk 0:02:49]}  h6 {[%clk 0:02:48]} 12. Bh4 {[%clk 0:02:47]}  g5 {[%clk 0:02:48]} 13. Bg3 {[%clk 0:02:43]}  Ng6 {[%clk 0:02:48]} 14. Nbd2 {[%clk 0:02:42]}  Ba6 {[%clk 0:02:47]} 15. h4 {[%clk 0:02:35]}  g4 {[%clk 0:02:41]} 16. Nh2 {[%clk 0:02:34]}  Ncxe5 {[%clk 0:02:23]} 17. h5 {[%clk 0:02:32]}  Nxd3 {[%clk 0:02:15]} 18. hxg6 {[%clk 0:02:28]}  Nxe1 {[%clk 0:02:09]} 19. Bxa6 {[%clk 0:02:22]}  Rxa6 {[%clk 0:01:51]} 20. gxf7+ {[%clk 0:02:19]}  Rxf7 {[%clk 0:01:52]} 21. Qxe1 {[%clk 0:02:19]}  Qd7 {[%clk 0:01:48]} 22. Nxg4 {[%clk 0:02:18]}  Rf5 {[%clk 0:01:46]} 23. Nf3 {[%clk 0:02:16]}  Ra8 {[%clk 0:01:45]} 24. Be5 {[%clk 0:02:04]}  h5 {[%clk 0:01:30]} 25. Ngh2 {[%clk 0:01:44]}  Bh6 {[%clk 0:01:30]} 26. Nh4 {[%clk 0:01:39]}  Rg5 {[%clk 0:01:24]} 27. Bf4 {[%clk 0:01:34]}  Rf8 {[%clk 0:01:23]} 28. Bxg5 {[%clk 0:01:34]}  Bxg5 {[%clk 0:01:24]} 29. Ng6 {[%clk 0:01:29]}  Rf6 {[%clk 0:01:22]} 30. Ne5 {[%clk 0:01:28]}  Qg7 {[%clk 0:01:22]} 31. Qe2 {[%clk 0:01:24]}  Bf4 {[%clk 0:01:22]} 32. Nhf3 {[%clk 0:01:25]}  Rf5 {[%clk 0:01:18]} 33. Re1 {[%clk 0:01:22]}  h4 {[%clk 0:01:17]} 34. Nd3 {[%clk 0:01:10]}  h3 {[%clk 0:01:03]} 35. Qxe6+ {[%clk 0:01:09]}  Kh8 {[%clk 0:00:59]} 36. Nxf4 {[%clk 0:01:08]}  Rxf4 {[%clk 0:00:58]} 37. Qxh3+ {[%clk 0:01:07]}  Kg8 {[%clk 0:00:59]} 38. Re8+ {[%clk 0:01:02]}  Rf8 {[%clk 0:00:56]} 39. Qe6+ {[%clk 0:01:02]}  Kh7 {[%clk 0:00:55]} 40. Ng5+ {[%clk 0:00:53]} 1-0


[Site "https://www.chess.com"]

[Event "Titled Tuesday Blitz May 2 Early 2023"]
[White "Richter, Paul"]
[Black "Buchenau, Frank"]
[WhiteFideId "2046350"]
[BlackFideId "4604350"]
[WhiteElo "2171"]
[BlackElo "2157"]
[Result "1-0"]
[Round "03"]
[TimeControl "180+2"]
[Date "2023.05.02"]
[WhiteClock "0:00:04"]
[BlackClock "0:00:30"]

1. e4 {[%clk 0:03:00]}  e6 {[%clk 0:02:59]} 2. d4 {[%clk 0:03:00]}  d5 {[%clk 0:02:59]} 3. Nc3 {[%clk 0:03:00]}  Nf6 {[%clk 0:02:59]} 4. Bg5 {[%clk 0:02:59]}  dxe4 {[%clk 0:02:59]} 5. Nxe4 {[%clk 0:03:00]}  Be7 {[%clk 0:02:59]} 6. Bxf6 {[%clk 0:03:00]}  gxf6 {[%clk 0:02:59]} 7. Nf3 {[%clk 0:03:01]}  f5 {[%clk 0:02:59]} 8. Nc3 {[%clk 0:03:01]}  a6 {[%clk 0:02:59]} 9. g3 {[%clk 0:03:00]}  b5 {[%clk 0:02:59]} 10. Bg2 {[%clk 0:03:00]}  Bb7 {[%clk 0:02:59]} 11. O-O {[%clk 0:02:57]}  O-O {[%clk 0:02:56]} 12. Ne5 {[%clk 0:02:49]}  Bxg2 {[%clk 0:02:55]} 13. Kxg2 {[%clk 0:02:50]}  c5 {[%clk 0:02:39]} 14. Qf3 {[%clk 0:02:27]}  Ra7 {[%clk 0:02:18]} 15. dxc5 {[%clk 0:02:04]}  Bxc5 {[%clk 0:02:14]} 16. Rad1 {[%clk 0:01:54]}  Qc7 {[%clk 0:02:08]} 17. Rfe1 {[%clk 0:01:54]}  Bd6 {[%clk 0:01:48]} 18. Nd3 {[%clk 0:00:36]}  Nc6 {[%clk 0:01:47]} 19. Qe3 {[%clk 0:00:34]}  Rd8 {[%clk 0:01:31]} 20. Qg5+ {[%clk 0:00:32]}  Kh8 {[%clk 0:01:25]} 21. Qf6+ {[%clk 0:00:31]}  Kg8 {[%clk 0:01:25]} 22. Qg5+ {[%clk 0:00:16]}  Kh8 {[%clk 0:01:24]} 23. Qf6+ {[%clk 0:00:13]}  Kg8 {[%clk 0:01:24]} 24. h4 {[%clk 0:00:12]}  Qe7 {[%clk 0:01:19]} 25. Qh6 {[%clk 0:00:12]}  Rad7 {[%clk 0:01:10]} 26. Nd5 {[%clk 0:00:11]}  exd5 {[%clk 0:01:00]} 27. Rxe7 {[%clk 0:00:12]}  Nxe7 {[%clk 0:00:58]} 28. Qg5+ {[%clk 0:00:10]}  Kf8 {[%clk 0:00:57]} 29. h5 {[%clk 0:00:09]}  Rc8 {[%clk 0:00:48]} 30. Qf6 {[%clk 0:00:09]}  Ng8 {[%clk 0:00:43]} 31. Qxf5 {[%clk 0:00:07]}  Rdc7 {[%clk 0:00:35]} 32. Nf4 {[%clk 0:00:07]}  Bxf4 {[%clk 0:00:35]} 33. Qxf4 {[%clk 0:00:07]}  Rxc2 {[%clk 0:00:34]} 34. Rxd5 {[%clk 0:00:07]}  Ne7 {[%clk 0:00:31]} 35. Rd7 {[%clk 0:00:06]}  Ke8 {[%clk 0:00:31]} 36. Ra7 {[%clk 0:00:05]}  Rxb2 {[%clk 0:00:30]} 37. Qe5 {[%clk 0:00:04]} 1-0


[Site "https://www.chess.com"]

[Event "Titled Tuesday Blitz May 2 Early 2023"]
[White "Wessendorf, Thomas, Dr."]
[Black "Goncalves, Davi Sulzbacher"]
[WhiteFideId "4604270"]
[BlackFideId "2154510"]
[WhiteElo "2280"]
[BlackElo "2182"]
[Result "0-1"]
[Round "03"]
[TimeControl "180+2"]
[Date "2023.05.02"]
[WhiteClock "0:00:13"]
[BlackClock "0:00:53"]

1. e4 {[%clk 0:03:00]}  g6 {[%clk 0:03:00]} 2. d4 {[%clk 0:03:00]}  Bg7 {[%clk 0:03:00]} 3. Nc3 {[%clk 0:03:00]}  d6 {[%clk 0:03:01]} 4. Nge2 {[%clk 0:02:58]}  Nf6 {[%clk 0:03:02]} 5. h3 {[%clk 0:02:57]}  O-O {[%clk 0:03:02]} 6. g4 {[%clk 0:02:56]}  c5 {[%clk 0:03:02]} 7. Be3 {[%clk 0:02:53]}  cxd4 {[%clk 0:03:01]} 8. Nxd4 {[%clk 0:02:51]}  Nc6 {[%clk 0:03:02]} 9. Bg2 {[%clk 0:02:48]}  Bd7 {[%clk 0:03:01]} 10. Nde2 {[%clk 0:02:28]}  Ne5 {[%clk 0:02:57]} 11. Bd4 {[%clk 0:02:28]}  Qa5 {[%clk 0:02:52]} 12. O-O {[%clk 0:02:11]}  b5 {[%clk 0:02:47]} 13. a3 {[%clk 0:02:07]}  Nc4 {[%clk 0:02:47]} 14. b4 {[%clk 0:01:58]}  Qc7 {[%clk 0:02:45]} 15. Nd5 {[%clk 0:01:54]}  Nxd5 {[%clk 0:02:44]} 16. Bxg7 {[%clk 0:01:51]}  Kxg7 {[%clk 0:02:45]} 17. exd5 {[%clk 0:01:50]}  a5 {[%clk 0:02:15]} 18. Nd4 {[%clk 0:01:44]}  Ne5 {[%clk 0:02:02]} 19. f4 {[%clk 0:01:19]}  Nc4 {[%clk 0:01:55]} 20. Qd3 {[%clk 0:01:11]}  Qa7 {[%clk 0:01:40]} 21. Kh2 {[%clk 0:01:09]}  axb4 {[%clk 0:01:39]} 22. axb4 {[%clk 0:01:08]}  Qxa1 {[%clk 0:01:40]} 23. Rxa1 {[%clk 0:01:07]}  Rxa1 {[%clk 0:01:41]} 24. Qc3 {[%clk 0:01:07]}  Ra3 {[%clk 0:01:40]} 25. Nb3+ {[%clk 0:01:02]}  Kg8 {[%clk 0:01:40]} 26. g5 {[%clk 0:00:55]}  f6 {[%clk 0:01:28]} 27. Kg3 {[%clk 0:00:47]}  fxg5 {[%clk 0:01:15]} 28. fxg5 {[%clk 0:00:47]}  Bf5 {[%clk 0:01:10]} 29. Bf1 {[%clk 0:00:40]}  Bxc2 {[%clk 0:01:03]} 30. Qxc2 {[%clk 0:00:32]}  Rxf1 {[%clk 0:01:00]} 31. Kh2 {[%clk 0:00:17]}  Rf3 {[%clk 0:00:53]} 32. Nd4 {[%clk 0:00:14]}  Rxh3+ {[%clk 0:00:52]} 33. Kg1 {[%clk 0:00:13]}  Rag3+ {[%clk 0:00:53]} 34. Kf1 {[%clk 0:00:13]}  Ne3+ {[%clk 0:00:53]} 0-1


[Site "https://www.chess.com"]

[Event "Titled Tuesday Blitz May 2 Early 2023"]
[White "Vlassov, Nikolai"]
[Black "Osiecki, Stanislaw"]
[WhiteFideId "4103360"]
[BlackFideId "1102990"]
[WhiteElo "2324"]
[BlackElo "2088"]
[Result "1-0"]
[Round "03"]
[TimeControl "180+2"]
[Date "2023.05.02"]
[WhiteClock "0:02:11"]
[BlackClock "0:01:59"]

1. e4 {[%clk 0:03:00]}  e6 {[%clk 0:02:58]} 2. c4 {[%clk 0:03:00]}  d5 {[%clk 0:02:58]} 3. cxd5 {[%clk 0:03:00]}  exd5 {[%clk 0:02:58]} 4. Qb3 {[%clk 0:03:01]}  dxe4 {[%clk 0:02:55]} 5. Bc4 {[%clk 0:03:00]}  Qe7 {[%clk 0:02:54]} 6. Nc3 {[%clk 0:03:00]}  Nf6 {[%clk 0:02:52]} 7. d3 {[%clk 0:02:59]}  exd3+ {[%clk 0:02:52]} 8. Be3 {[%clk 0:02:57]}  Nc6 {[%clk 0:02:45]} 9. O-O-O {[%clk 0:02:53]}  Bf5 {[%clk 0:02:44]} 10. Qxb7 {[%clk 0:02:47]}  d2+ {[%clk 0:02:20]} 11. Rxd2 {[%clk 0:02:36]}  Rd8 {[%clk 0:02:11]} 12. Qxc6+ {[%clk 0:02:32]}  Bd7 {[%clk 0:02:11]} 13. Qxc7 {[%clk 0:02:29]}  g6 {[%clk 0:02:08]} 14. Nf3 {[%clk 0:02:23]}  Bg7 {[%clk 0:02:08]} 15. Bc5 {[%clk 0:02:22]}  Rc8 {[%clk 0:02:03]} 16. Qxc8+ {[%clk 0:02:17]}  Bxc8 {[%clk 0:02:02]} 17. Bxe7 {[%clk 0:02:17]}  Kxe7 {[%clk 0:02:02]} 18. Re1+ {[%clk 0:02:16]}  Be6 {[%clk 0:02:01]} 19. Bxe6 {[%clk 0:02:12]}  fxe6 {[%clk 0:02:01]} 20. Ng5 {[%clk 0:02:12]}  Bh6 {[%clk 0:01:59]} 21. Rxe6+ {[%clk 0:02:11]} 1-0


[Site "https://www.chess.com"]

[Event "Titled Tuesday Blitz May 2 Early 2023"]
[White "Dronavalli, Harika"]
[Black "Panico, Nick"]
[WhiteFideId "5015197"]
[BlackFideId "2026724"]
[WhiteElo "2432"]
[BlackElo "1982"]
[Result "1-0"]
[Round "03"]
[TimeControl "180+2"]
[Date "2023.05.02"]
[WhiteClock "0:00:56"]
[BlackClock "0:00:41"]

1. c4 {[%clk 0:03:00]}  f5 {[%clk 0:02:59]} 2. Nc3 {[%clk 0:03:00]}  Nf6 {[%clk 0:02:59]} 3. g3 {[%clk 0:03:00]}  g6 {[%clk 0:02:59]} 4. Bg2 {[%clk 0:03:01]}  Bg7 {[%clk 0:02:59]} 5. d3 {[%clk 0:03:02]}  O-O {[%clk 0:02:59]} 6. e4 {[%clk 0:03:02]}  d6 {[%clk 0:02:56]} 7. Nge2 {[%clk 0:02:56]}  Nc6 {[%clk 0:02:56]} 8. O-O {[%clk 0:02:55]}  e5 {[%clk 0:02:56]} 9. Nd5 {[%clk 0:02:53]}  Nxd5 {[%clk 0:02:34]} 10. cxd5 {[%clk 0:02:40]}  Nd4 {[%clk 0:02:32]} 11. Nxd4 {[%clk 0:02:40]}  exd4 {[%clk 0:02:33]} 12. f4 {[%clk 0:02:40]}  fxe4 {[%clk 0:02:22]} 13. dxe4 {[%clk 0:02:40]}  c5 {[%clk 0:02:19]} 14. Bd2 {[%clk 0:02:19]}  Qb6 {[%clk 0:02:18]} 15. b3 {[%clk 0:02:18]}  Bd7 {[%clk 0:02:18]} 16. Kh1 {[%clk 0:02:16]}  Rae8 {[%clk 0:02:14]} 17. Re1 {[%clk 0:02:16]}  Qd8 {[%clk 0:02:00]} 18. a4 {[%clk 0:02:15]}  b6 {[%clk 0:01:58]} 19. Ra2 {[%clk 0:02:13]}  a6 {[%clk 0:01:56]} 20. Qf3 {[%clk 0:01:53]}  Qe7 {[%clk 0:01:55]} 21. Bf1 {[%clk 0:01:45]}  Bc8 {[%clk 0:01:40]} 22. Bc1 {[%clk 0:01:42]}  Qg5 {[%clk 0:01:36]} 23. Rf2 {[%clk 0:01:24]}  Qg4 {[%clk 0:01:33]} 24. Qxg4 {[%clk 0:01:22]}  Bxg4 {[%clk 0:01:34]} 25. Bxa6 {[%clk 0:01:22]}  g5 {[%clk 0:01:34]} 26. Bd3 {[%clk 0:01:14]}  h6 {[%clk 0:01:31]} 27. Kg2 {[%clk 0:01:13]}  Bd7 {[%clk 0:01:29]} 28. Ref1 {[%clk 0:01:11]}  g4 {[%clk 0:01:27]} 29. Re2 {[%clk 0:01:09]}  Rb8 {[%clk 0:01:23]} 30. e5 {[%clk 0:01:05]}  Rb7 {[%clk 0:01:06]} 31. e6 {[%clk 0:01:04]}  Be8 {[%clk 0:01:07]} 32. f5 {[%clk 0:01:05]}  b5 {[%clk 0:00:57]} 33. axb5 {[%clk 0:01:03]}  Bxb5 {[%clk 0:00:57]} 34. Bxb5 {[%clk 0:01:04]}  Rxb5 {[%clk 0:00:58]} 35. e7 {[%clk 0:01:04]}  Re8 {[%clk 0:00:59]} 36. f6 {[%clk 0:01:04]}  Bxf6 {[%clk 0:00:44]} 37. Rxf6 {[%clk 0:01:04]}  Rxb3 {[%clk 0:00:42]} 38. Bxh6 {[%clk 0:01:03]}  Rbb8 {[%clk 0:00:40]} 39. Rf8+ {[%clk 0:00:55]}  Rxf8 {[%clk 0:00:40]} 40. exf8=Q+ {[%clk 0:00:55]}  Rxf8 {[%clk 0:00:40]} 41. Bxf8 {[%clk 0:00:55]}  d3 {[%clk 0:00:40]} 42. Rf2 {[%clk 0:00:49]}  c4 {[%clk 0:00:39]} 43. Bh6 {[%clk 0:00:49]}  c3 {[%clk 0:00:37]} 44. Ra2 {[%clk 0:00:48]}  d2 {[%clk 0:00:36]} 45. Bxd2 {[%clk 0:00:48]}  cxd2 {[%clk 0:00:37]} 46. Rxd2 {[%clk 0:00:49]}  Kf7 {[%clk 0:00:37]} 47. Rd4 {[%clk 0:00:49]}  Kf6 {[%clk 0:00:38]} 48. Rxg4 {[%clk 0:00:50]}  Ke5 {[%clk 0:00:38]} 49. Rg5+ {[%clk 0:00:50]}  Kf6 {[%clk 0:00:38]} 50. h4 {[%clk 0:00:51]}  Kf7 {[%clk 0:00:38]} 51. Kf3 {[%clk 0:00:52]}  Kf6 {[%clk 0:00:39]} 52. Kf4 {[%clk 0:00:53]}  Kf7 {[%clk 0:00:39]} 53. h5 {[%clk 0:00:53]}  Kf6 {[%clk 0:00:39]} 54. Rg6+ {[%clk 0:00:53]}  Kf7 {[%clk 0:00:40]} 55. Kf5 {[%clk 0:00:54]}  Ke7 {[%clk 0:00:40]} 56. Rg7+ {[%clk 0:00:53]}  Kf8 {[%clk 0:00:40]} 57. h6 {[%clk 0:00:54]}  Ke8 {[%clk 0:00:40]} 58. Kf6 {[%clk 0:00:54]}  Kf8 {[%clk 0:00:41]} 59. g4 {[%clk 0:00:55]}  Ke8 {[%clk 0:00:41]} 60. h7 {[%clk 0:00:55]}  Kd8 {[%clk 0:00:41]} 61. h8=Q# {[%clk 0:00:56]} 1-0


[Site "https://www.chess.com"]

[Event "Titled Tuesday Blitz May 2 Early 2023"]
[White "Prudnykova, Olga"]
[Black "Garv Gaur"]
[WhiteFideId "14121093"]
[BlackFideId "45030839"]
[WhiteElo "2113"]
[BlackElo "2068"]
[Result "0-1"]
[Round "03"]
[TimeControl "180+2"]
[Date "2023.05.02"]
[WhiteClock "0:00:44"]
[BlackClock "0:01:15"]

1. e4 {[%clk 0:02:55]}  g6 {[%clk 0:02:57]} 2. d4 {[%clk 0:02:54]}  Bg7 {[%clk 0:02:55]} 3. Nc3 {[%clk 0:02:54]}  d5 {[%clk 0:02:54]} 4. exd5 {[%clk 0:02:50]}  Nf6 {[%clk 0:02:52]} 5. Bc4 {[%clk 0:02:46]}  Nbd7 {[%clk 0:02:52]} 6. Bb3 {[%clk 0:02:44]}  Nb6 {[%clk 0:02:51]} 7. Qf3 {[%clk 0:02:37]}  Bg4 {[%clk 0:02:50]} 8. Qg3 {[%clk 0:02:33]}  Bf5 {[%clk 0:02:50]} 9. Qf3 {[%clk 0:02:31]}  Qd7 {[%clk 0:02:30]} 10. h3 {[%clk 0:02:26]}  h5 {[%clk 0:02:28]} 11. Bf4 {[%clk 0:02:25]}  Rd8 {[%clk 0:02:27]} 12. Nge2 {[%clk 0:02:19]}  Nbxd5 {[%clk 0:02:14]} 13. Nxd5 {[%clk 0:02:18]}  Nxd5 {[%clk 0:02:13]} 14. Bxd5 {[%clk 0:01:55]}  Qxd5 {[%clk 0:02:14]} 15. Qxd5 {[%clk 0:01:53]}  Rxd5 {[%clk 0:02:14]} 16. c3 {[%clk 0:01:50]}  c6 {[%clk 0:02:11]} 17. Ng3 {[%clk 0:01:49]}  Bc8 {[%clk 0:02:09]} 18. O-O {[%clk 0:01:46]}  O-O {[%clk 0:02:09]} 19. Rfe1 {[%clk 0:01:46]}  Re8 {[%clk 0:01:55]} 20. Re2 {[%clk 0:01:44]}  Kf8 {[%clk 0:01:51]} 21. Rae1 {[%clk 0:01:43]}  b6 {[%clk 0:01:47]} 22. Nf1 {[%clk 0:01:41]}  Ba6 {[%clk 0:01:39]} 23. Re3 {[%clk 0:01:40]}  e6 {[%clk 0:01:35]} 24. Be5 {[%clk 0:01:35]}  Red8 {[%clk 0:01:28]} 25. Bxg7+ {[%clk 0:01:33]}  Kxg7 {[%clk 0:01:29]} 26. Nh2 {[%clk 0:01:30]}  c5 {[%clk 0:01:28]} 27. dxc5 {[%clk 0:01:30]}  bxc5 {[%clk 0:01:28]} 28. b3 {[%clk 0:01:29]}  Rd2 {[%clk 0:01:28]} 29. a4 {[%clk 0:01:20]}  Rb2 {[%clk 0:01:27]} 30. c4 {[%clk 0:01:13]}  Rdd2 {[%clk 0:01:26]} 31. Rf3 {[%clk 0:01:11]}  Bb7 {[%clk 0:01:25]} 32. Rf4 {[%clk 0:01:11]}  g5 {[%clk 0:01:24]} 33. Rf3 {[%clk 0:00:52]}  Bxf3 {[%clk 0:01:22]} 34. Nxf3 {[%clk 0:00:53]}  Rxf2 {[%clk 0:01:22]} 35. Rd1 {[%clk 0:00:54]}  Rxg2+ {[%clk 0:01:21]} 36. Kh1 {[%clk 0:00:53]}  Rg3 {[%clk 0:01:21]} 37. Ne5 {[%clk 0:00:52]}  Rxh3+ {[%clk 0:01:20]} 38. Kg1 {[%clk 0:00:51]}  Rg3+ {[%clk 0:01:20]} 39. Kh1 {[%clk 0:00:52]}  Rgg2 {[%clk 0:01:19]} 40. Rd7 {[%clk 0:00:49]}  Rgf2 {[%clk 0:01:18]} 41. Rd1 {[%clk 0:00:46]}  Rf5 {[%clk 0:01:15]} 42. Nd3 {[%clk 0:00:44]}  Rxb3 {[%clk 0:01:15]} 0-1


[Site "https://www.chess.com"]